bitfinex/quotes_ETHUSD_20250715
["timestamp","ask_amount","ask_price","bid_price","bid_amount"]
[1752614351706,7.6500205,3061.2,3061.1,0.04]
[1752614352227,7.2200205,3061.2,3061.1,0.04]
[1752614352830,3.26722645,3060.7,3060.6,0.001]
[1752614354892,3.72200205,3061.1,3060.6,0.001]
[1752614355095,4.7227277,3061.2,3060.6,0.4708]
[1752614355096,0.9533277,3061.2,3060.6,0.4708]
[1752614355295,3.43005947,3061.1,3060.7,0.03267226]
[1752614355496,3.26697275,3061.0,3060.8,0.4558]
[1752614355730,0.1632,3060.9,3060.6,5.029]
[1752614356436,0.1632,3060.9,3060.7,0.4558]
[1752614356605,0.1632,3060.9,3060.6,5.029]
[1752614356793,0.1632,3060.9,3060.8,0.4558]
[1752614359496,2.85279554,3064.3,3061.0,4.05587042]
[1752614359497,3.73928628,3062.8,3061.0,4.05587042]
[1752614359741,0.1632,3062.2,3061.7,0.789]
[1752614359920,0.1632,3062.2,3061.8,5.5148]
[1752614360123,0.1632,3062.0,3061.8,8.32502947]
[1752614360449,0.1632,3062.0,3061.9,0.4558]
[1752614361398,0.1632,3062.0,3061.5,0.1632]
[1752614361596,0.5563,3062.0,3061.7,5.058]
[1752614361802,0.3931,3062.0,3061.7,5.058]
[1752614362210,0.1632,3061.9,3061.8,1.2448]
[1752614362441,0.1632,3062.1,3061.8,1.2448]
[1752614362705,0.1632,3062.6,3062.5,3.26527559]
[1752614362969,0.1632,3062.6,3062.5,8.32627559]
[1752614363262,0.1632,3062.6,3062.5,8.78207559]
[1752614364327,0.04,3062.9,3062.6,3.26516132]
[1752614364664,0.04,3062.9,3062.7,3.26502003]
[1752614364826,0.04,3062.9,3062.7,3.26501241]
[1752614365026,0.04,3062.9,3062.8,0.4558]
[1752614366833,0.8514,3062.9,3062.4,0.1632]
[1752614367138,0.1632,3062.6,3062.3,5.057]
[1752614367343,0.1632,3062.5,3062.3,5.057]
[1752614368168,3.42858069,3062.5,3062.3,5.057]
[1752614368679,0.83257884,3062.5,3062.3,5.057]
[1752614368831,0.1632,3062.5,3062.3,5.057]
[1752614369271,3.26541274,3062.4,3062.3,5.057]
[1752614370081,3.26576338,3062.1,3061.8,0.4558]
[1752614370370,3.26576338,3062.1,3062.0,5.067]
[1752614371646,0.1632,3062.0,3061.8,5.066]
[1752614372681,3.26594598,3061.9,3061.8,5.066]
[1752614373861,3.26566119,3062.2,3061.8,5.066]
[1752614374060,3.26593724,3062.0,3061.8,5.066]
[1752614374748,3.26594598,3061.9,3061.8,5.066]
[1752614375101,3.26588852,3062.0,3061.8,5.066]
[1752614376490,3.26594598,3061.9,3061.8,5.066]
[1752614377246,3.42931074,3061.8,3061.5,5.061]
[1752614378269,0.1632,3061.8,3061.5,5.061]
[1752614378479,0.1632,3061.8,3061.5,5.5168]
[1752614380468,0.1632,3061.8,3061.5,8.78316279]
[1752614384092,0.1632,3061.8,3061.5,8.78313161]
[1752614384698,3.0,3062.6,3061.7,1.3125]
[1752614384905,3.26501508,3062.8,3062.3,0.7625]
[1752614385120,0.04,3062.9,3062.4,5.056]
[1752614385398,0.04,3062.9,3062.5,3.26529296]
[1752614385605,0.04,3062.9,3062.5,3.73959296]
[1752614385915,3.0,3062.8,3062.4,5.056]
[1752614386064,3.67047617,3062.9,3062.5,0.4743]
[1752614386690,0.67047617,3062.9,3062.5,3.73960117]
[1752614387999,0.67047617,3062.9,3062.5,3.73952056]
[1752614388207,0.67047617,3062.9,3062.5,0.4743]
[1752614388503,0.04,3062.9,3062.6,3.73944315]
[1752614388801,0.04,3062.9,3062.7,5.053]
[1752614389892,0.04,3062.9,3062.8,3.73928628]
[1752614392221,0.04,3062.9,3062.8,4.53218628]
[1752614392513,0.04,3062.9,3062.8,6.07335477]
[1752614392824,0.04,3062.9,3062.8,11.10170491]
[1752614393749,0.002,3063.3,3062.8,11.25170491]
[1752614393750,1e-08,3063.3,3062.8,11.25170491]
[1752614393886,1e-08,3063.3,3063.2,7.57545993]
[1752614394227,1e-08,3063.3,3063.2,12.64945993]
[1752614394519,1e-08,3063.3,3063.2,8.04975993]
[1752614394720,1e-08,3063.3,3063.2,8.21295993]
[1752614395219,1e-08,3063.3,3063.2,8.46033925]
[1752614395404,1e-08,3063.3,3063.2,9.64950214]
[1752614395722,1e-08,3063.3,3063.2,14.72650214]
[1752614396317,1e-08,3063.3,3063.2,25.49843973]
[1752614403727,1e-08,3063.3,3063.2,14.71950214]
[1752614408611,1e-08,3063.3,3063.2,12.93430214]
[1752614408899,1e-08,3063.3,3063.2,8.32855993]
[1752614410995,1e-08,3063.3,3063.2,10.11125993]
[1752614411199,1e-08,3063.3,3063.2,10.27445993]
[1752614411501,1e-08,3063.3,3063.2,10.52284079]
[1752614411729,1e-08,3063.3,3063.2,11.90169105]
[1752614411934,1e-08,3063.3,3063.2,14.90169105]
[1752614412343,0.04,3063.9,3063.8,3.81392062]
[1752614412545,0.04,3063.9,3063.8,9.79522062]
[1752614412703,0.04,3063.9,3063.8,10.26952062]
[1752614412910,0.04,3063.9,3063.8,12.70006874]
[1752614413522,0.04,3064.9,3064.5,0.55]
[1752614413840,0.04,3064.9,3064.8,18.35479324]
[1752614414144,0.5027,3065.9,3064.8,18.35479324]
[1752614414145,0.04,3065.9,3065.3,4.32]
[1752614414448,0.04,3065.9,3065.4,9.78132514]
[1752614414746,0.5027,3065.9,3065.4,9.74870297]
[1752614415117,0.04,3065.9,3065.4,9.74870297]
[1752614415445,0.4833,3065.9,3065.4,9.75170297]
[1752614415807,0.7767,3065.5,3065.3,3.26228133]
[1752614416028,0.7767,3065.5,3065.4,3.262217]
[1752614416348,0.005,3065.5,3065.4,8.366217]
[1752614417651,0.4483,3065.5,3065.4,5.104]
[1752614417854,0.4483,3065.5,3065.0,0.03262642]
[1752614418153,0.005,3065.5,3065.3,3.2622695]
[1752614418353,0.005,3065.5,3065.4,5.102]
[1752614420759,0.87180123,3068.7,3065.5,3.0]
[1752614420959,0.7707,3068.0,3066.6,3.0]
[1752614421161,0.7707,3068.0,3065.6,6.6409967]
[1752614421162,0.4433,3067.8,3066.7,5.183]
[1752614421457,0.7555,3067.2,3066.7,5.183]
[1752614421613,0.4433,3067.1,3066.4,5.183]
[1752614421816,0.4433,3067.6,3066.6,0.55]
[1752614422017,0.4433,3067.6,3066.7,5.187]
[1752614422211,3.4433,3067.6,3066.8,3.59305709]
[1752614422453,0.41988,3067.5,3066.9,5.48872203]
[1752614422655,0.7555,3067.7,3067.0,0.29972203]
[1752614422966,4.5105217,3068.5,3067.8,3.2596649]
[1752614423254,6.2590849,3068.4,3067.8,5.48708411]
[1752614423473,0.04,3068.9,3067.9,0.55]
[1752614423674,0.04,3068.9,3067.8,7.61259483]
[1752614423675,0.04,3068.9,3068.8,0.1624]
[1752614423861,0.04,3068.9,3068.8,0.29908411]
[1752614424037,0.04,3068.9,3068.7,5.219]
[1752614424233,0.04,3068.9,3068.8,4.58025217]
[1752614424448,0.04,3068.9,3068.8,2.17473548]
[1752614424648,0.04,3068.9,3068.8,0.29794946]
[1752614424874,0.04,3068.9,3068.8,0.33053548]
[1752614425174,0.04,3068.9,3068.8,0.29794946]
[1752614425739,3.29849652,3068.9,3068.8,0.29794946]
[1752614426039,5.22048359,3068.9,3068.8,0.29794946]
[1752614426241,1.96198707,3068.9,3068.8,0.29679982]
[1752614426466,3.25913372,3068.3,3068.2,5.225]
[1752614426739,3.70243372,3068.3,3068.2,0.29669854]
[1752614427048,3.70243372,3068.3,3067.5,5.226]
[1752614427049,3.25987742,3067.6,3067.5,5.226]
[1752614427252,3.58586516,3067.6,3067.5,0.29679664]
[1752614427457,3.25987742,3067.6,3067.5,0.29679664]
[1752614428236,3.70317742,3067.6,3067.5,0.29679664]
[1752614429941,3.26010736,3067.4,3067.0,0.03260515]
[1752614430182,3.26020766,3067.3,3067.1,0.29690256]
[1752614430392,3.26020766,3067.3,3067.2,0.29690256]
[1752614431215,4.39985757,3067.3,3067.2,0.29690256]
[1752614431703,3.26075066,3066.8,3066.5,5.218]
[1752614431998,3.26075066,3066.8,3066.6,0.2970826]
[1752614432303,3.26075066,3066.8,3066.7,0.2970826]
[1752614432977,3.26075066,3066.8,3066.7,0.29715436]
[1752614434901,3.70405066,3066.8,3066.7,0.29715436]
[1752614435199,4.37241779,3066.8,3066.7,0.29715436]
[1752614435717,4.07196586,3066.2,3066.1,0.04]
[1752614436067,7.51526586,3066.2,3066.1,0.04]
[1752614436369,3.262217,3065.4,3065.3,0.001]
[1752614436596,3.26214594,3065.5,3065.3,0.001]
[1752614436775,3.705517,3065.4,3065.3,0.001]
[1752614436975,5.17837096,3065.4,3065.3,0.001]
[1752614438404,8.17837096,3065.4,3065.3,0.001]
[1752614438776,13.38837096,3065.4,3065.3,0.001]
[1752614439414,13.38737096,3065.4,3065.3,0.001]
[1752614442403,8.17837096,3065.4,3065.3,0.001]
[1752614442693,13.38337096,3065.4,3065.3,0.001]
[1752614443584,13.37737096,3065.4,3065.3,0.001]
[1752614445627,0.8227,3065.8,3065.3,0.001]
[1752614445939,0.1624,3065.8,3065.3,0.6184]
[1752614446082,0.1624,3065.8,3065.5,3.26204766]
[1752614446506,0.1624,3065.8,3065.7,3.26189777]
[1752614446819,0.1624,3066.2,3065.9,0.7871]
[1752614447225,0.1624,3066.2,3065.9,1.2421]
[1752614447583,0.1624,3066.2,3066.0,0.75331133]
[1752614447787,3.69204054,3066.2,3066.1,0.29831133]
[1752614448021,5.21027048,3066.2,3066.1,0.29831133]
[1752614449428,3.26197049,3065.7,3065.3,0.456]
[1752614449587,3.26211058,3065.5,3065.4,0.29837738]
[1752614449918,3.42451058,3065.5,3065.4,0.29837738]
[1752614450306,0.1624,3065.5,3065.3,0.001]
[1752614450508,0.1624,3065.5,3065.4,0.29825228]
[1752614450696,3.42451058,3065.5,3065.4,0.29825228]
[1752614452899,3.262217,3065.4,3065.3,0.001]
[1752614455927,3.9146499,3065.4,3065.3,0.001]
[1752614456128,4.3452499,3065.4,3065.3,0.001]
[1752614456343,5.1690499,3065.4,3065.3,0.001]
[1752614459027,8.1690499,3065.4,3065.3,0.001]
[1752614459724,13.3550499,3065.4,3065.3,0.001]
[1752614460299,3.26242985,3065.2,3065.1,1e-08]
[1752614460646,13.11018886,3065.2,3065.1,1e-08]
[1752614460812,13.54078886,3065.2,3065.1,1e-08]
[1752614463103,13.53678886,3065.2,3065.1,1e-08]
[1752614464758,43.53678886,3065.2,3065.1,1e-08]
[1752614464947,44.36978886,3065.2,3065.1,1e-08]
[1752614466544,44.36178886,3065.2,3065.1,1e-08]
[1752614469729,14.36178886,3065.2,3065.1,1e-08]
[1752614469932,44.36178886,3065.2,3065.1,1e-08]
[1752614472366,55.10247444,3065.2,3065.1,1e-08]
[1752614472551,3.26349454,3064.2,3064.1,0.04]
[1752614472739,12.50064399,3064.2,3064.1,1e-08]
[1752614473057,3.26360105,3064.1,3064.0,1e-08]
[1752614473249,8.85720105,3064.1,3064.0,1e-08]
[1752614473445,8.42660105,3064.1,3064.0,1e-08]
[1752614473645,40.20266652,3064.1,3064.0,1e-08]
[1752614474072,10.20266652,3064.1,3064.0,1e-08]
[1752614474278,40.20266652,3064.1,3064.0,1e-08]
[1752614475086,40.20066652,3064.1,3064.0,1e-08]
[1752614475656,35.03966652,3064.1,3064.0,1e-08]
[1752614475858,10.19766652,3064.1,3064.0,1e-08]
[1752614476470,10.19866652,3064.1,3064.0,1e-08]
[1752614477167,5.03966652,3064.1,3064.0,1e-08]
[1752614477366,10.19766652,3064.1,3064.0,1e-08]
[1752614477562,5.03966652,3064.1,3064.0,1e-08]
[1752614477766,10.19566652,3064.1,3064.0,1e-08]
[1752614477966,5.03966652,3064.1,3064.0,1e-08]
[1752614478189,10.19466652,3064.1,3064.0,1e-08]
[1752614480678,5.03966652,3064.1,3064.0,1e-08]
[1752614480998,10.18866652,3064.1,3064.0,1e-08]
[1752614481290,40.18866652,3064.1,3064.0,1e-08]
[1752614482776,43.18866652,3064.1,3064.0,1e-08]
[1752614482961,43.73866652,3064.1,3064.0,1e-08]
[1752614484295,44.52366652,3064.1,3064.0,1e-08]
[1752614484684,55.2643521,3064.1,3064.0,1e-08]
[1752614485665,3.26498628,3062.8,3062.7,0.001]
[1752614485974,9.05841918,3062.8,3062.7,0.001]
[1752614486989,9.50561918,3062.8,3062.7,0.001]
[1752614493795,9.05841918,3062.8,3062.7,0.001]
[1752614494183,9.50561918,3062.8,3062.7,0.001]
[1752614496300,3.91741918,3062.8,3062.7,0.001]
[1752614496511,9.04541918,3062.8,3062.7,0.001]
[1752614498012,9.49261918,3062.8,3062.7,0.001]
[1752614498200,42.49261918,3062.8,3062.7,1e-08]
[1752614500613,3.42829289,3062.7,3062.6,1e-08]
[1752614500814,35.0900519,3062.7,3062.6,1e-08]
[1752614501153,35.5772519,3062.7,3062.6,1e-08]
[1752614501611,39.3772519,3062.7,3062.6,1e-08]
[1752614501947,39.9272519,3062.7,3062.6,1e-08]
[1752614502433,3.26583932,3062.0,3061.9,0.001]
[1752614502592,38.38283932,3062.0,3061.9,0.001]
[1752614502994,3.26637269,3061.5,3061.4,0.001]
[1752614503331,8.38337269,3061.5,3061.4,0.001]
[1752614503534,9.03580559,3061.5,3061.4,0.001]
[1752614504898,12.03580559,3061.5,3061.4,0.001]
[1752614505099,12.07580559,3061.5,3061.4,0.001]
[1752614505498,3.26679951,3061.1,3061.0,1e-08]
[1752614505800,8.38079951,3061.1,3061.0,1e-08]
[1752614505999,3.26679951,3061.1,3061.0,1.30510001]
[1752614506446,11.38179951,3061.1,3061.0,1.30510001]
[1752614506941,6.26679951,3061.1,3061.0,1.30510001]
[1752614507117,12.33514841,3061.1,3061.0,1.30510001]
[1752614507442,8.155,3061.1,3061.0,0.47280001]
[1752614507645,0.04,3061.1,3061.0,1.24690001]
[1752614507811,5.154,3061.1,3061.0,1.24690001]
[1752614508750,0.04,3061.1,3061.0,1.24690001]
[1752614509647,3.30679951,3061.1,3061.0,1.24690001]
[1752614509809,0.04,3061.1,3061.0,1.24690001]
[1752614510146,12.2617727,3061.1,3061.0,0.77410001]
[1752614510439,12.2617727,3061.1,3061.0,0.47280001]
[1752614511344,12.2617727,3061.1,3061.0,1e-08]
[1752614512644,37.1487727,3061.1,3061.0,1e-08]
[1752614512812,42.7314727,3061.1,3061.0,1e-08]
[1752614513323,42.7314727,3061.1,3060.6,0.001]
[1752614513324,3.26722645,3060.7,3060.6,1e-08]
[1752614513507,3.59394909,3060.7,3060.6,1e-08]
[1752614513722,8.70494909,3060.7,3060.6,0.47280001]
[1752614513922,8.70494909,3060.7,3060.6,1e-08]
[1752614515759,3.59394909,3060.7,3060.6,1e-08]
[1752614515960,8.70494909,3060.7,3060.6,1e-08]
[1752614516757,41.70494909,3060.7,3060.5,1e-08]
[1752614516956,40.4808442,3060.6,3060.5,1e-08]
[1752614517142,10.0091442,3060.6,3060.5,1e-08]
[1752614517371,7.2318332,3060.6,3060.5,1e-08]
[1752614517551,12.3428332,3060.6,3060.5,1e-08]
[1752614518038,12.8145332,3060.6,3060.5,1e-08]
[1752614518838,12.8135332,3060.6,3060.5,1e-08]
[1752614519239,12.3418332,3060.6,3060.5,1e-08]
[1752614519460,14.30929348,3060.6,3060.5,1e-08]
[1752614520366,44.78099348,3060.6,3060.5,1e-08]
[1752614520662,44.77799348,3060.6,3060.5,1e-08]
[1752614521672,39.19929348,3060.6,3060.5,1e-08]
[1752614521855,3.2032,3060.6,3060.5,1.26230001]
[1752614522161,0.2032,3060.6,3060.5,1.26230001]
[1752614522861,3.4705332,3060.6,3060.5,1.26230001]
[1752614523225,0.2032,3060.6,3060.5,1.26230001]
[1752614524046,3.4705332,3060.6,3060.5,1.26230001]
[1752614524280,0.2032,3060.6,3060.5,1.26230001]
[1752614526475,0.04,3060.6,3060.5,5.11241436]
[1752614526631,0.042,3061.1,3060.9,3.2669987]
[1752614526830,0.042,3061.1,3061.0,4.09520623]
[1752614527468,0.042,3061.1,3061.0,4.56800623]
[1752614527662,0.042,3061.1,3061.0,1.3011]
[1752614528027,0.042,3061.1,3061.0,4.56800623]
[1752614528229,0.042,3061.1,3061.0,5.9296463]
[1752614528428,0.042,3061.1,3061.0,6.0928463]
[1752614528675,0.042,3061.1,3061.0,6.12551536]
[1752614528875,3.26579585,3062.1,3061.3,0.55]
[1752614529078,3.26579585,3062.1,3061.6,0.592]
[1752614529377,3.26579585,3062.1,3061.7,0.4728]
[1752614529936,3.26585661,3062.0,3061.7,0.4728]
[1752614530173,3.26743615,3062.4,3061.7,0.4728]
[1752614530681,3.26570119,3062.2,3061.7,0.4728]
[1752614531668,3.26573923,3062.1,3061.7,0.4728]
[1752614532180,3.26566354,3062.2,3061.7,0.4728]
[1752614532759,3.26574153,3062.1,3061.7,0.4728]
[1752614532961,3.26558515,3062.3,3061.7,3.7389341]
[1752614533147,3.26558515,3062.3,3061.6,0.592]
[1752614533148,0.002,3062.4,3061.8,0.4728]
[1752614533570,3.26574664,3062.1,3061.8,0.4728]
[1752614534679,3.2658394,3062.0,3061.8,0.4728]
[1752614535491,0.002,3062.4,3061.9,4.09701532]
[1752614535669,0.002,3062.4,3062.0,0.8311]
[1752614535988,3.26742338,3062.4,3062.0,1.262]
[1752614536185,3.26742338,3062.4,3062.1,0.4309]
[1752614536585,0.002,3062.4,3062.2,3.29822012]
[1752614536786,0.002,3062.4,3062.3,4.46953139]
[1752614536964,0.002,3062.4,3062.3,4.90043139]
[1752614537367,0.002,3062.4,3062.3,1.63491201]
[1752614537765,0.002,3062.4,3062.3,1.29465519]
[1752614538885,0.002,3062.4,3062.3,1.262]
[1752614543349,0.002,3062.4,3062.0,0.8144]
[1752614543554,3.26559956,3062.3,3062.2,0.4309]
[1752614545670,3.26563082,3062.2,3062.0,0.8144]
[1752614545876,3.42893266,3062.1,3062.0,1.2453]
[1752614546072,0.1632,3062.1,3061.6,1.4085]
[1752614546314,0.1632,3061.8,3061.7,5.5259]
[1752614547031,3.42925264,3061.8,3061.7,0.4309]
[1752614547173,3.42925264,3061.8,3061.4,0.4309]
[1752614547174,0.1632,3061.8,3061.4,0.4309]
[1752614547508,3.26637269,3061.5,3061.4,5.5259]
[1752614548412,3.26632115,3061.6,3061.4,5.5259]
[1752614548908,3.26637269,3061.5,3061.4,5.5259]
[1752614549689,3.26632031,3061.6,3061.4,5.5259]
[1752614550616,3.26632031,3061.6,3061.4,5.095]
[1752614550813,3.26632031,3061.6,3061.5,0.4309]
[1752614552427,3.26608396,3061.8,3061.5,0.4309]
[1752614552428,3.26621426,3061.7,3061.5,0.4309]
[1752614553205,3.266266,3061.6,3061.5,0.4309]
[1752614553582,3.26623209,3061.7,3061.5,0.4309]
[1752614554085,3.26608396,3061.8,3061.5,0.4309]
[1752614554488,3.266266,3061.6,3061.5,0.4309]
[1752614554887,0.1632,3061.5,3061.4,5.095]
[1752614555088,0.1632,3061.5,3061.4,5.5259]
[1752614556228,3.42963133,3061.5,3061.4,5.086]
[1752614559537,3.26658609,3061.3,3061.1,0.8296]
[1752614559698,1.46069047,3061.5,3060.9,5.08]
[1752614560031,3.26685926,3061.1,3060.9,5.08]
[1752614560232,3.26690623,3061.0,3060.9,5.08]
[1752614560532,3.26701297,3060.9,3060.8,5.9095]
[1752614560838,3.26701297,3060.9,3060.8,5.081]
[1752614561695,3.0,3061.3,3060.5,1e-08]
[1752614561930,3.26721656,3060.8,3060.6,5.08]
[1752614562130,3.26722645,3060.7,3060.6,5.08]
[1752614562630,3.26717472,3060.8,3060.6,5.5109]
[1752614562845,3.26722645,3060.7,3060.6,5.08]
[1752614567715,3.26722645,3060.7,3060.5,5.07400001]
[1752614568105,3.26722645,3060.7,3060.5,5.54260001]
[1752614568803,3.2673332,3060.6,3060.5,0.46960001]
[1752614569002,3.2673332,3060.6,3060.5,5.07300001]
[1752614569739,0.7931,3061.2,3060.5,1.22520001]
[1752614569953,3.26693911,3061.0,3060.5,1.22520001]
[1752614570146,3.26719356,3060.8,3060.6,5.073]
[1752614570347,3.0,3061.1,3060.6,5.073]
[1752614570549,3.2671197,3060.8,3060.7,0.4696]
[1752614571104,0.1632,3060.9,3060.7,0.4696]
[1752614571333,0.1632,3060.9,3060.7,1.82024875]
[1752614571642,0.1632,3060.9,3060.8,0.4696]
[1752614573040,0.1632,3060.9,3060.8,5.5426]
[1752614573247,3.26831788,3061.6,3060.9,3.26701297]
[1752614573410,0.1632,3061.3,3061.0,8.37249468]
[1752614573765,0.1632,3061.3,3061.1,0.4696]
[1752614573909,0.1632,3061.3,3061.2,5.073]
[1752614574111,0.1632,3061.3,3061.2,5.5426]
[1752614581054,0.1632,3061.3,3061.2,8.8092928]
[1752614581267,0.1632,3061.3,3061.2,5.5426]
[1752614585573,0.1652,3061.3,3061.2,5.5426]
[1752614586478,0.1652,3061.3,3061.2,5.073]
[1752614587142,0.1652,3061.3,3061.2,5.5426]
[1752614591476,0.1652,3061.3,3061.2,5.073]
[1752614591682,0.1652,3061.3,3061.2,5.5426]
[1752614595688,0.1652,3061.3,3061.2,5.073]
[1752614596090,0.1652,3061.3,3061.2,5.5099]
[1752614602183,0.002,3061.3,3061.2,18.14938379]
[1752614602536,0.002,3061.3,3061.2,18.31258379]
[1752614602995,0.002,3061.3,3061.2,21.31258379]
[1752614604787,0.002,3061.3,3061.2,21.31258379]
[1752614605609,0.002,3061.6,3061.5,14.80988685]
[1752614605771,0.002,3061.6,3061.5,19.87988685]
[1752614605973,0.002,3061.6,3061.5,22.3577229]
[1752614606168,1e-08,3061.6,3061.5,22.7946229]
[1752614606884,1e-08,3061.6,3061.5,30.6386229]
[1752614608205,0.002,3062.4,3062.3,11.80903354]
[1752614608405,0.002,3062.4,3062.3,18.22213689]
[1752614608917,0.002,3062.4,3062.3,18.65903689]
[1752614609398,0.002,3062.4,3062.3,18.90784821]
[1752614611526,0.002,3062.4,3062.3,11.73123405]
[1752614615624,0.002,3062.4,3062.3,11.8914603]
[1752614615808,0.002,3062.4,3062.3,14.73123405]
[1752614617883,0.002,3062.4,3062.3,9.66323405]
[1752614618131,0.002,3062.4,3062.3,14.73023405]
[1752614618327,0.002,3062.4,3062.3,9.66323405]
[1752614618625,0.002,3062.4,3062.3,14.73023405]
[1752614620943,0.002,3062.4,3062.3,6.22633405]
[1752614621143,0.002,3062.4,3062.3,11.76188924]
[1752614621316,0.002,3062.4,3062.3,11.72923405]
[1752614621840,0.002,3062.4,3062.3,1.59291467]
[1752614622042,0.002,3062.4,3062.3,5.47801132]
[1752614622216,0.002,3062.4,3062.3,5.51066651]
[1752614623107,0.002,3062.4,3062.3,5.47801132]
[1752614623307,0.4622,3062.4,3062.3,5.47801132]
[1752614623843,0.4622,3062.4,3062.3,5.31481132]
[1752614625084,3.72761274,3062.4,3062.3,5.31481132]
[1752614625543,3.72761274,3062.4,3062.3,5.066]
[1752614625846,4.52020637,3062.4,3062.3,5.066]
[1752614626561,4.49920637,3062.4,3062.3,5.066]
[1752614627063,3.70661274,3062.4,3062.3,5.066]
[1752614639485,0.4412,3062.4,3062.3,5.066]
[1752614641487,0.002,3062.4,3062.3,17.33458873]
[1752614641660,0.002,3062.4,3062.3,17.46513354]
[1752614641860,0.002,3062.6,3062.5,7.61990612]
[1752614642081,0.002,3062.6,3062.5,7.78310612]
[1752614642291,0.002,3062.6,3062.5,8.22330612]
[1752614642498,0.002,3063.6,3063.5,3.26424024]
[1752614642794,0.002,3063.6,3063.5,16.0538544]
[1752614642999,0.002,3063.6,3063.5,16.4940544]
[1752614643186,0.002,3063.6,3063.5,18.55035425]
[1752614643855,0.002,3063.6,3063.5,19.47646974]
[1752614644196,0.002,3063.6,3063.5,22.31095425]
[1752614644806,1e-08,3063.6,3063.5,22.47287264]
[1752614650820,1e-08,3063.6,3063.5,22.31095425]
[1752614652274,1e-08,3063.6,3063.5,17.24695425]
[1752614652481,1e-08,3063.6,3063.5,15.29554009]
[1752614653809,1e-08,3063.6,3063.5,14.74554009]
[1752614654181,1e-08,3063.6,3063.5,15.29554009]
[1752614662091,1e-08,3063.6,3063.5,16.07252437]
[1752614662672,1e-08,3063.6,3063.5,15.68992983]
[1752614662995,1e-08,3063.6,3063.5,15.29554009]
[1752614663744,1e-08,3064.1,3063.8,0.55]
[1752614663951,1e-08,3064.1,3064.0,11.52441416]
[1752614664254,1e-08,3064.1,3064.0,21.91892259]
[1752614664426,1e-08,3064.1,3064.0,22.38432259]
[1752614664944,1e-08,3064.1,3064.0,22.68424774]
[1752614666530,0.042,3064.9,3064.8,3.81285565]
[1752614666863,0.042,3064.9,3064.8,9.20440935]
[1752614667151,0.042,3064.9,3064.8,11.84180906]
[1752614667810,0.042,3064.9,3064.8,11.54188391]
[1752614668013,0.042,3064.9,3064.8,11.84227371]
[1752614673532,1e-08,3064.9,3064.8,14.84227371]
[1752614674469,1e-08,3065.3,3065.2,3.81242985]
[1752614674654,1e-08,3065.3,3065.2,20.24795415]
[1752614674854,1e-08,3065.4,3065.3,6.81232342]
[1752614675041,1e-08,3065.9,3065.8,7.63589137]
[1752614675242,1e-08,3065.9,3065.8,29.09267386]
[1752614675448,1e-08,3065.9,3065.8,29.72047386]
[1752614675656,1e-08,3065.9,3065.8,29.88646193]
[1752614675964,1e-08,3065.9,3065.8,30.13575841]
[1752614676732,0.04,3066.9,3065.8,30.13575841]
[1752614676733,1e-08,3066.2,3066.1,3.81147222]
[1752614676928,1e-08,3066.2,3066.1,20.90463021]
[1752614677134,1e-08,3066.2,3066.1,21.03441549]
[1752614677330,0.04,3066.9,3066.8,3.81072779]
[1752614677556,0.04,3066.9,3066.8,19.53757313]
[1752614677756,0.04,3066.9,3066.8,22.33146671]
[1752614678169,0.04,3066.9,3066.8,21.86606671]
[1752614678771,0.04,3066.9,3066.8,9.63445255]
[1752614679072,0.04,3066.9,3066.8,12.3293517]
[1752614679653,0.04,3066.9,3066.8,7.2733517]
[1752614679852,0.04,3066.9,3066.8,12.3293517]
[1752614680590,0.04,3066.9,3066.8,7.2733517]
[1752614680879,0.04,3066.9,3066.8,12.02812779]
[1752614681083,0.04,3066.9,3066.8,12.01442779]
[1752614681639,0.04,3066.9,3066.8,0.1624]
[1752614681865,1.2835,3066.9,3066.8,5.2174]
[1752614682074,1.2835,3066.9,3066.8,0.1624]
[1752614682247,1.2835,3066.9,3066.6,0.1950094]
[1752614682637,1.2835,3066.9,3066.7,5.055]
[1752614683482,0.4321,3066.8,3066.7,5.055]
[1752614683880,0.4321,3066.8,3066.6,0.1950094]
[1752614684058,3.8552451,3066.8,3066.7,5.054]
[1752614684481,0.5945,3066.8,3066.7,5.054]
[1752614684851,3.85522779,3066.8,3066.7,5.054]
[1752614685384,0.5945,3066.8,3066.7,5.054]
[1752614685742,0.5945,3066.8,3066.3,3.42363511]
[1752614685941,0.4749,3066.7,3066.4,5.054]
[1752614686586,0.4749,3066.6,3066.4,5.054]
[1752614686791,0.4749,3066.5,3066.4,5.054]
[1752614689899,0.4749,3066.5,3065.8,16.34868917]
[1752614689900,0.8062,3066.4,3065.8,0.24929648]
[1752614690103,0.4749,3066.3,3066.0,3.2615786]
[1752614690263,0.9686,3066.4,3066.1,5.054]
[1752614690594,0.1624,3066.7,3066.6,3.26094045]
[1752614690796,0.1624,3066.7,3066.6,8.31494045]
[1752614691296,0.1624,3066.7,3066.6,5.054]
[1752614691484,0.6373,3066.7,3066.6,5.054]
[1752614694400,0.6373,3066.7,3066.6,8.31494045]
[1752614694780,0.6373,3066.7,3066.6,5.054]
[1752614697114,0.6373,3066.7,3066.6,8.31494045]
[1752614697743,0.6373,3066.7,3066.6,5.054]
[1752614698225,0.6373,3066.7,3066.6,8.31494045]
[1752614698386,0.6373,3066.7,3066.6,5.054]
[1752614698587,0.6373,3066.7,3066.6,8.31494045]
[1752614699501,0.6373,3066.7,3066.6,5.054]
[1752614700522,0.6373,3066.7,3066.4,0.001]
[1752614700728,0.4749,3066.6,3066.5,5.052]
[1752614700898,1.231,3066.6,3066.4,0.001]
[1752614701106,4.49204679,3066.5,3066.4,0.001]
[1752614701419,5.26734614,3066.5,3066.4,5.053]
[1752614704045,5.26734614,3066.5,3066.4,0.001]
[1752614704528,15.4429603,3066.5,3066.4,1e-08]